Cogmind - Beta 17 @@@ ROGUE MODE // 2026.07.25 @ 23:25:58 Player: teag2 Result: Self-destructed Performance ------------- Evolutions (2) 1000 Regions Visited (3) 600 Robots Destroyed (44) 220 Value Destroyed (1311) 1311 Prototype IDs (19) 380 Alien Tech Used (0) 0 Bonus (0) 0 TOTAL SCORE: 3511 Bonus ------- None Cogmind --------- Core Integrity 466/550 Matter 217/300 Energy 100/350 System Corruption 0% Temperature Cool (0) Movement Treading (320) Ox2 Location -8/Materials Parts ------- > --- POWER (1) -------- Quantum Reactor (fused) > --- PROPULSION (4) --- Light Treads (fused) Improved Treads (fused) > --- UTILITY (4) ------ Huge Storage Unit Hardened Medium Armor Plating Self-contained Transmogrifier > --- WEAPON (2) ------- EMP Blaster (fused) EMP Blaster (fused) > --- INVENTORY (25) --- Light Nuclear Core Aluminum Leg Large Matter Pod (110) Scrap Shield Hacking Suite Improved Assault Rifle Improved Assault Rifle Grenade Launcher Grenade Launcher SUBCON Basin (Full) Peak State ------------ > --- POWER ------------ Meta Core > --- PROPULSION ------- Light Treads Flight Unit > --- UTILITY ---------- Huge Storage Unit Hardened Medium Armor Plating Self-contained Transmogrifier > --- WEAPON ----------- Autogun Mini Assault Cannon > --- INVENTORY -------- Light Nuclear Core Large Matter Pod Scrap Shield Hacking Suite Improved Assault Rifle Improved Assault Rifle Grenade Launcher Grenade Launcher SUBCON Basin [Rating: 54] Favorites ----------- Power Ion Engine Engine Ion Engine Power Core Meta Core Propulsion Light Treads Treads Light Treads Leg Aluminum Leg Wheel Subdweller Monowheel Flight Unit Flight Unit Utility Large Storage Unit Device Improved Terrain Scanner Storage Large Storage Unit Protection Tower Shield Weapon Autogun Energy Gun Heavy Particle Gun Ballistic Gun Autogun Ballistic Cannon Mini Assault Cannon Launcher Grenade Launcher Build | -11 -10 -10 -8 ------- Run | Yrd Mat Sub Mat Slots Evolved 4 | . . . 4 Power . | . . . . Propulsion 2 | . . . 2 Utility 2 | . . . 2 Weapon . | . . . . Parts Attached 29 | . 13 13 3 Power 3 | . 1 2 . Engine 2 | . 1 1 . Core 1 | . . 1 . Reactor . | . . . . Propulsion 9 | . 5 3 1 Treads 3 | . 3 . . Leg 3 | . 2 . 1 Wheel 1 | . . 1 . Hover . | . . . . Flight 2 | . . 2 . Utility 7 | . 2 3 2 Device 2 | . . 1 1 Storage 2 | . 1 1 . Processor . | . . . . Hackware . | . . . . Protection 3 | . 1 1 1 Artifact . | . . . . Weapon 10 | . 5 5 . Energy Gun . | . . . . Energy Cannon . | . . . . Ballistic Gun 7 | . 5 2 . Ballistic Cannon . | . . . . Launcher 3 | . . 3 . Special Weapon . | . . . . Impact Weapon . | . . . . Slashing Weapon . | . . . . Piercing Weapon . | . . . . Special Melee Weapon . | . . . . Unidentified Prototypes 2 | . 1 . 1 Parts Lost 9 | . 3 6 . Power 2 | . 1 1 . Propulsion 4 | . 1 3 . Utility 1 | . . 1 . Weapon 2 | . 1 1 . Highest Loss Streak 3 | . 3 2 . To Critical Strikes . | . . . . Average Backups 11 | . 9 12 8 Power . | . . . . Propulsion 1 | . 3 1 . Utility 3 | . 2 3 3 Weapon 5 | . 3 5 4 Tool/Special . | . . . . Unused Backups 16 | . 9 . 7 Power 2 | . 1 . 1 Propulsion 3 | . 2 . 1 Utility 5 | . 2 . 3 Weapon 6 | . 4 . 2 Tool/Special . | . . . . Average Slot Usage (%) 72 | . 95 72 55 Engine 5 | . 13 5 . Core 1 | . . . 7 Treads 10 | . 23 8 4 Wheel 1 | . . 2 . Flight 4 | . . 5 5 Device 4 | . . 4 4 Storage 10 | . 14 11 7 Protection 5 | . 10 4 6 Ballistic Gun 17 | . 27 17 7 Launcher 8 | . . 10 6 Peak Build Rating 54 | . 11 39 54 Average Rating 24 | . 7 21 48 On Entrance 15 | 6 6 11 39 Avg Prop Armor Cover (%) 4 | . 6 4 2 Naked Turns . | . . . . Heaviest Build 103 | 12 34 92 103 Greatest Support 43 | 20 40 40 43 Greatest Overweight (x) 34 | . 1 30 34 Average Overweight (x) 3 | . . 4 10 Largest Inventory Capacity 25 | . 15 25 25 Average Capacity 17 | . 14 16 25 Most Carried 25 | . 15 25 25 Average Carried 15 | . 9 14 24 Final Capacity 25 | 8 15 25 25 Final Carried 25 | 6 15 25 25 Transmogrified Parts 8 | . . . 8 Integrity Recovered 163 | . . . 163 Class Distribution -------------------- 69% | Mutant 13% | Gunner 13% | Skirmisher 3% | Tank Dominant Class ---------------- Mutant | -10/Materials Mutant | -10/Subcaves Mutant | -8/Materials Resources | -11 -10 -10 -8 ----------- Run | Yrd Mat Sub Mat Matter Collected 1583 | 180 466 684 253 Remotely . | . . . . Salvage Created 1506 | . 710 512 284 Parts 87 | . 53 27 7 Haulers Intercepted 2 | . 2 . . Recyclers Shooed . | . . . . Parts Field Recycled . | . . . . Retrieved Matter . | . . . . Parts Self-Destructed 14 | . . 14 . Prevented . | . . . . Parts Restored . | . . . . Kills | -11 -10 -10 -8 ------- Run | Yrd Mat Sub Mat Combat Hostiles Destroyed 35 | . 15 17 3 Guns 26 | . 15 8 3 AOE 9 | . . 9 . Classes Destroyed 9 | . 7 1 1 Tunneler 1 | . 1 . . Hauler 2 | . 2 . . Mechanic 2 | . 1 . 1 Operator 1 | . 1 . . Watcher 3 | . 1 . 2 Swarmer 7 | . 6 1 . Grunt 12 | . 9 1 2 Duelist 1 | . . . 1 Subdweller 15 | . . 15 . Best Kill Streak 4 | . 4 3 3 Combat Bots Only 3 | . 3 3 3 Max Kills in Single Turn 2 | . 2 2 1 Gunslinging . | . . . . Exploded 2 | . . 2 . Melee . | . . . . Uniques/NPCs Destroyed . | . . . . Combat | -11 -10 -10 -8 -------- Run | Yrd Mat Sub Mat Hostile Shots Fired 155 | . 82 42 31 Missed 43 | . 10 17 16 Hits 112 | . 72 25 15 Melee 6 | . . . 6 Projectile 106 | . 72 25 9 Critical Strikes 3 | . . . 3 Damage Taken 1760 | . 704 719 337 Core 280 | . 120 76 84 Absorbed by Shields . | . . . . Core Remaining (%) 60 | 100 . 21 . Volleys Fired 124 | . 68 35 21 Largest 4 | . 2 4 2 Hottest 106 | . 46 106 78 Shots Fired 239 | . 136 61 42 Gun 212 | . 136 34 42 Cannon . | . . . . Launcher 27 | . . 27 . Special . | . . . . Kinetic 211 | . 136 34 41 Thermal 1 | . . . 1 Explosive 27 | . . 27 . Electromagnetic . | . . . . Robot Hit Streak 21 | . 9 12 21 Robot Miss Streak 4 | . 4 2 3 Penetration Max . | . . . . Secondary Targets 2 | . 2 . . Max Gunslinging Chain 1 | . 1 . . Shots Hit Robots 150 | . 83 36 31 Core Hits 73 | . 33 29 11 Critical Kills 1 | . 1 . . Critical Parts Destroyed 1 | . . . 1 Critical Strikes 2 | . 1 . 1 Destroy 2 | . 1 . 1 Melee Attacks . | . . . . Impact . | . . . . Slashing . | . . . . Piercing . | . . . . Sneak Attacks . | . . . . Combat Hostiles . | . . . . Follow-up Attacks . | . . . . Damage Inflicted 2842 | . 959 1399 484 Guns 1779 | . 956 339 484 Cannons . | . . . . Explosions 1060 | . . 1060 . Melee . | . . . . Ramming 3 | . 3 . . Kinetic 1757 | . 956 339 462 Thermal 22 | . . . 22 Explosive 1060 | . . 1060 . Electromagnetic . | . . . . Impact . | . . . . Slashing . | . . . . Piercing . | . . . . Highest Corruption . | . . . . Average Corruption . | . . . . Corruption Purged . | . . . . Corruption Blocked . | . . . . Overload Shots . | . . . . Overflow Damage 5 | . . 5 . Projectiles . | . . . . Explosions 5 | . . 5 . Melee . | . . . . Knockbacks . | . . . . Impact . | . . . . Kinetic . | . . . . Secondary . | . . . . Self-Inflicted Damage 122 | . . 122 . Shots 9 | . . 9 . Rammed 2 | . 2 . . Targets Rammed 2 | . 2 . . Kicked . | . . . . Crushed . | . . . . Highest Temperature 36 | . 24 . 36 Average Temperature 7 | . 7 . 7 Received Heat Transfer 366 | . 231 54 81 Siege Activations . | . . . . Martial Activations . | . . . . Shielding Activations . | . . . . Robots Disrupted . | . . . . Combat Hostiles . | . . . . Robots Corrupted . | . . . . Combat Hostiles . | . . . . Parts Fried . | . . . . Impact Corruptions . | . . . . Robots Melted . | . . . . Combat Hostiles . | . . . . Parts Melted . | . . . . Heat Transferred 37 | . . . 37 Parts Sabotaged . | . . . . Parts Stolen . | . . . . Parts Stripped . | . . . . Power Chain Reactions . | . . . . Alert | -11 -10 -10 -8 ------- Run | Yrd Mat Sub Mat Maximum Alert Level 1 | . 1 . . Low Security (%) 99 | . 99 . 100 Level 1 . | . . . . Level 2 . | . . . . Level 3 . | . . . . Level 4 . | . . . . Level 5 . | . . . . High Security . | . . . . Max Security . | . . . . Peak Influence 205 | . 205 . 62 Initial . | . . . . Average 46 | . 98 . 3 Influence Increases 710 | . 556 65 89 Destroy 0b10 Robot/C 400 | . 300 40 60 Destroy 0b10 Robot/NC 45 | . 30 . 15 Destroy Leader 90 | . 66 10 14 Successful Hack 39 | . 39 . . Select Force Hacks 60 | . 60 . . Destroy Structure 1 | . 1 . . Lose Combat Pursuer 75 | . 60 15 . Influence Decreases 710 | . 552 69 89 Entered New Map 3 | . . 3 . Time Decay 677 | . 522 66 89 Lost Part 30 | . 30 . . Squads Dispatched 3 | . 3 . . Investigation 2 | . 2 . . Extermination . | . . . . Reinforcement 1 | . 1 . . Assault . | . . . . Garrison . | . . . . Intercept . | . . . . Searches Triggered . | . . . . Construction Impeded . | . . . . Haulers Reinforced . | . . . . Active Scanning Responses . | . . . . Cargo Convoy Interrupts . | . . . . Stealth | -11 -10 -10 -8 --------- Run | Yrd Mat Sub Mat Distress Signals 1 | . . . 1 Communications Jammed . | . . . . Distress Signals . | . . . . Times Spotted 53 | . 28 17 8 Peak Tracking Total 4 | . 3 3 4 Tactical Retreats 4 | . 3 1 . Traps | -11 -10 -10 -8 ------- Run | Yrd Mat Sub Mat Traps Triggered 4 | . 1 3 . Indirectly . | . . . . Trap Hack Attempts . | . . . . Triggered . | . . . . Disarmed . | . . . . Reprogrammed . | . . . . Reused . | . . . . Traps Extracted . | . . . . Installed . | . . . . Triggered . | . . . . Machines | -11 -10 -10 -8 ---------- Run | Yrd Mat Sub Mat Machines Disabled 2 | . . 2 . Max in Single Turn 2 | . . 2 . Machines Repaired . | . . . . Machines Dismantled . | . . . . Machines Sabotaged . | . . . . Overloaded Fab Kills . | . . . . Hacking | -11 -10 -10 -8 --------- Run | Yrd Mat Sub Mat Machines Accessed 12 | . 8 4 . Terminals 6 | . 6 . . Fabricators . | . . . . Repair Stations . | . . . . Recycling Units 2 | . 2 . . Scanalyzers . | . . . . Garrison Access . | . . . . Total Hacks 31 | . 23 8 . Successful 21 | . 13 8 . Failed 10 | . 10 . . Catastrophic 1 | . 1 . . Database Lockouts . | . . . . Manual 21 | . 21 . . Terminals 20 | . 20 . . Fabricators . | . . . . Repair Stations . | . . . . Recycling Units 3 | . 3 . . Scanalyzers . | . . . . Garrison Access . | . . . . Terminal Hacks 11 | . 3 8 . Record 5 | . . 5 . Open Door 1 | . . 1 . Terminal Index 1 | . 1 . . Recycling Unit Index 1 | . 1 . . Locate Traps 1 | . 1 . . Proto ID Catalog 1 | . . 1 . Release Object 1 | . . 1 . Fabricator Hacks . | . . . . Repair Station Hacks . | . . . . Recycling Unit Hacks 1 | . 1 . . Process 1 | . 1 . . Scanalyzer . | . . . . Garrison Access Hacks . | . . . . Unauthorized Hacks 9 | . 9 . . Terminals 7 | . 7 . . Botnet 1 | . 1 . . Operators 1 | . 1 . . Skim 5 | . 5 . . Fabricators . | . . . . Repair Stations . | . . . . Recycling Units 2 | . 2 . . Tunnel 2 | . 2 . . Scanalyzers . | . . . . Garrison Access . | . . . . Data Cores Recovered . | . . . . Used . | . . . . Hacking Detections 5 | . 5 . . Full Trace Events . | . . . . Feedback Events . | . . . . Feedback Blocked . | . . . . Robot Schematics Acquired . | . . . . Robots Built . | . . . . Authchips . | . . . . Time . | . . . . Total Robot Build Rating . | . . . . Part Schematics Acquired . | . . . . Parts Built . | . . . . Authchips . | . . . . Time . | . . . . Total Part Build Rating . | . . . . Part Studies Acquired . | . . . . Parts Repaired . | . . . . Time . | . . . . Parts Recycled . | . . . . Recycled Matter 142 | . 142 . . Retrieved Matter . | . . . . Retrieved Components . | . . . . Parts Scanalyzed . | . . . . Part Schematics Acquired . | . . . . Parts Damaged . | . . . . Bothacking | -11 -10 -10 -8 ------------ Run | Yrd Mat Sub Mat Used RIF Installer . | . . . . Robots Hacked . | . . . . Non-combat . | . . . . Combat . | . . . . Robot Hacks Applied . | . . . . Relay Couplers Released . | . . . . Fabnet Peak Effective % . | . . . . Robots Rewired . | . . . . Allies Hacked . | . . . . Hacks Repelled . | . . . . Allies | -11 -10 -10 -8 -------- Run | Yrd Mat Sub Mat Total Allies . | . . . . Largest Group . | . . . . Highest-Rated Group . | . . . . Highest-Rated Ally . | . . . . Total Orders . | . . . . Ally Attacks . | . . . . Total Damage . | . . . . Kills . | . . . . Allies Corrupted . | . . . . Allies Melted . | . . . . Intel | -11 -10 -10 -8 ------- Run | Yrd Mat Sub Mat Active Infowar (turns) 3394 | . . 3394 . Terrain 3394 | . . 3394 . Robot Analysis Total . | . . . . Derelict Logs Recovered 2 | . . 2 . Drone Launches . | . . . . Drone Recoveries . | . . . . Exploration | -11 -10 -10 -8 ------------- Run | Yrd Mat Sub Mat Turns Passed 11032 | . 1508 7725 1799 Spaces Moved 2364 | 1 696 1535 132 Core 168 | . . 136 32 Treads 1423 | . 665 675 83 Legs 49 | 1 31 . 17 Wheels 421 | . . 421 . Hover . | . . . . Flight 303 | . . 303 . Fastest Speed 37 | 120 120 37 320 Average Speed 327 | 120 171 366 707 Slowest Speed 1800 | 120 240 1800 1750 Overloaded Moves . | . . . . Propulsion Burnouts . | . . . . Robots Hopped . | . . . . Potential Cave-ins . | . . . . Cave-ins Triggered . | . . . . Exploration Rate (%) 37 | 1 76 59 13 Regions Visited 3 Branch Regions 1 Pre-discovered Areas 5 | . 4 1 . Known Exits Taken . | . . . . Unknown Exits Taken 3 | 1 1 1 . Scrap Searched 4 | . . 4 . Spaces Dug . | . . . . Terrain Destroyed 116 | . . 116 . Melee . | . . . . Projectile . | . . . . AOE 116 | . . 116 . Terrain Rammed . | . . . . Walls Destroyed . | . . . . Machines Disabled . | . . . . Actions | -11 -10 -10 -8 --------- Run | Yrd Mat Sub Mat Total 5440 | . 888 3593 959 Wait 2834 | . 68 1969 797 Move 2361 | . 695 1534 132 Hop . | . . . . Pick Up 51 | . 26 21 4 Fast Attach 5 | . 1 3 1 Attach 23 | . 9 10 4 Detach 5 | . 2 3 . Swap 18 | . 5 13 . Drop 17 | . 12 5 . Fire 124 | . 68 35 21 Melee . | . . . . Ram . | . . . . Kick . | . . . . Crush 2 | . 2 . . Escape Stasis . | . . . . Rewire . | . . . . Trap . | . . . . Miscellaneous . | . . . . Route ------- -11/Scrapyard -10/Materials (discovered 5 exits: [*Mat x3] / [*Min] / *Sub) -10/Subcaves (discovered 2 exits: [*Mat x2]) -8/Materials (discovered 1 exit: *Sto) History --------- Turn | Location | Event 1 | -11/Scrapyard | Discovered new exit (range 0) 1 | -11/Scrapyard | Entered Materials 313 | -10/Materials | Build established: Mutant 353 | -10/Materials | Discovered new exit (range 3) 515 | -10/Materials | Lost 3 parts (1p1n1w) 519 | -10/Materials | Learned location of Mines (-9) 582 | -10/Materials | Learned 4 Subcaves zone layouts 677 | -10/Materials | Learned location of 2 exits from Mines 710 | -10/Materials | Loaded intel: 1 repair station location 755 | -10/Materials | Learned location of Subcaves (-10) 808 | -10/Materials | Learned 2 Materials zone layouts 872 | -10/Materials | Learned location of 2 exits from Mines 874 | -10/Materials | Discovered new exit (range 8) 1214 | -10/Materials | Discovered new exit (range 15) 1305 | -10/Materials | Discovered new exit (range 14) 1501 | -10/Materials | Discovered new exit (range 6) 1509 | -10/Materials | Entered Subcaves 1510 | -10/Subcaves | Approached by a straggling Scientist 1511 | -10/Subcaves | Learned location of Recycling (-8) 1778 | -10/Subcaves | Shifting Twisted Machinery released Sub. Beam Cannon 1823 | -10/Subcaves | Shifting Twisted Machinery released Sub. Optics 2615 | -10/Subcaves | Ambushed by Subdwellers from Twisted Machinery 2622 | -10/Subcaves | Core integrity fell below 50% 2622 | -10/Subcaves | Ambushed by Subdweller buried in earth 2785 | -10/Subcaves | Visited Clippyterm 2790 | -10/Subcaves | Learned 40 Factory zone layouts 3127 | -10/Subcaves | Shifting Twisted Machinery released Battle Rifle 3132 | -10/Subcaves | Shifting Twisted Machinery released Flamer 4568 | -10/Subcaves | Learned Materials emergency access door positions 4682 | -10/Subcaves | Discovered new exit (range 11) 4691 | -10/Subcaves | Shifting Twisted Machinery released Mak. Spear 5064 | -10/Subcaves | Visited 4L-MR0's lab 5074 | -10/Subcaves | Found Prototype Device 5092 | -10/Subcaves | Found Tower Shield 5094 | -10/Subcaves | Attached Tower Shield, gained temporary slots: Power, Propulsion x2, Utility x2, Weapon x2 5194 | -10/Subcaves | Shifting Twisted Machinery released Sub. Beam Cannon 5334 | -10/Subcaves | A swath of the cavern ceiling suddenly collapsed 5344 | -10/Subcaves | Discovered new exit (range 4) 5434 | -10/Subcaves | Build established: Gunner 6968 | -10/Subcaves | Build established: Skirmisher 8186 | -10/Subcaves | Found SUBCON Basin 8401 | -10/Subcaves | Build established: Mutant 8899 | -10/Subcaves | A Subdweller sparked back to life 8967 | -10/Subcaves | Found Meta Core 8968 | -10/Subcaves | Attached Meta Core, gained temporary slots: Propulsion, Utility, Weapon 9234 | -10/Subcaves | Entered Materials 9234 | -8/Materials | Evolved 4 slots: Propulsion x2, Utility x2 9235 | -8/Materials | Identified exit to Storage 9681 | -8/Materials | Build established: Tank 9965 | -8/Materials | Identified Sfc. Transmogrifier 10024 | -8/Materials | Build established: Mutant 11033 | -8/Materials | Self-destructed Last Messages --------------- W-25 Informer destroyed. Sfc. Transmogrifier converts Aluminum Leg into Lgt. Treads. Sfc. Transmogrifier converts Hvy. Particle Gun into Mni. Assault Cannon. Sfc. Transmogrifier converts Mni. Assault Cannon into Rocket Array. K-01 Serf collects debris. Sfc. Transmogrifier converts Autogun into EMP Blaster. K-01 Serf collects debris. Sfc. Transmogrifier converts Rocket Array into EMP Blaster. Sfc. Transmogrifier converts Flight Unit into Imp. Treads. Acquired Aluminum Leg. Sfc. Transmogrifier converts Meta Core into Quantum Reactor. Temporary Propulsion slot lost. Temporary Utility slot lost. Map ----- +----------------------------------------------------+ | | | | | | | | | | | | | | | | | | | | | | | | | | | | | | | | | | | | | ??????#######????????????????????????????????????? | | ??????# ! ########??????????????#######???????? | | ??????# # """ #??????????????# #???????? | | ??????# """ # """ #?############## #???????? | | ??????# """ + """ #?# > #???????? | | ??????# """ # #?# ############ #???????? | | ??????# # ### ########???# #???????? | | ##########+### + #@ #???#######???????? | | ##+##### # ! #?????????????????? | | ^ = ### # #?????????????????? | | ^ + ]! #?????????????????? | | ^ ##### # ]! #?????????????????? | | """ """ """ ##???# # ]! #?????????????????? | | """ """ """ #????# ########?????????????????? | | """ """ """ #????# #????????????????????????? | | +????# #????????????????????????? | | #????# #????????????????????????? | | ######### #????# #????????????????????????? | | ????????##+#####??????? #????????????????????????? | | ??????????????????????? ????????????????????????? | | ???????????????????????##????????????????????????? | | ?????????????????????????????????????????????????? | | ?????????????????????????????????????????????????? | | ?????????????????????????????????????????????????? | | ?????????????????????????????????????????????????? | | ??????# " " + "T" +????+??????????????????????? | | ??????# "R" # #???????????????????????????? | | ??????# """ # """ #???????????????????????????? | | ??????########## """ #???????????????????????????? | | ???????????????# """ #???????????????????????????? | | ???????????????# #???????????????????????????? | | ???????????????# #???????????????????????????? | +----------------------------------------------------+ Best States ------------- Heat Dissipation 31 Energy Generation 17 Energy Capacity 250 Matter Stores 300 Matter Capacity 300 Sight Range 16 Terrain Scan Range 16 Terrain Scan Density 10 Armor Coverage 2000 Evasion (%) 50 Recoil Reduction 2 Item Schematics ----------------- None Robot Schematics ------------------ None Fabricated ------------ Nothing Repaired ---------- Nothing Studied --------- None Alien Tech Used ----------------- None Achievements -------------- None Challenges ------------ None Game ------ Seed FissionDerelictShearcannon Manual? 0 Play Time 00:30:45 Cumulative 71.0 hours Start 2026.07.25 @ 22:43:27 End 2026.07.25 @ 23:25:58 Sessions 3 Manual Loads 0 Difficulty Rogue Special Mode None Game No. 49 Rogue 48 Adventurer 1 Explorer 0 Win Type - Total 4 Types 3/0/0/1/0/0/0/0/0/0 Lore% 42 Gallery% 47 Achievement% 47 Wizard Run 0 Options --------- Layout 1 ASCII 0 Keyboard 0 Movement Numpad Keybinds 0 Fullscreen 1 Font 32/SmallcapsGlow Map View 50x35 Zoom Use 0% Tactical HUD 0 Map Filters NONE Filters NONE Steam 1 RUN: 4e09b519-2d9c-49a8-9a02-c74047cd3712